Cogmind - Beta 15 @@@ ROGUE MODE // 2025.08.21 @ 16:32:05 Player: shapeshifter Result: Destroyed by B-86 Titan with Hardcell Cannon Performance ------------- Evolutions (6) 3000 Regions Visited (9) 1800 Robots Destroyed (101) 505 Value Destroyed (3922) 3922 Prototype IDs (17) 340 Alien Tech Used (0) 0 Bonus (-1257) -1257 TOTAL SCORE: 8310 Bonus ------- Friendly Fire -1257 Cogmind --------- Core Integrity 0/1150 Matter 233/300 Energy 65/100 System Corruption 8% Temperature Cool (0) Movement Core (50) Location -4/Upper Caves Parts ------- > --- POWER (2) -------- (None) > --- PROPULSION (7) --- (None) > --- UTILITY (8) ------ Advanced Visual Processing Unit Advanced Signal Interpreter Hacking Suite > --- WEAPON (2) ------- Lance > --- INVENTORY (5) ---- High-capacity Storage Unit Gauss Rifle Hypervelocity Mass Driver Remote Datajack Lance Peak State ------------ > --- POWER ------------ Light Antimatter Reactor Light Antimatter Reactor > --- PROPULSION ------- Flexi-carbon Leg Flexi-carbon Leg Flexi-carbon Leg Myomer Leg Myomer Leg Advanced VSS Leg Advanced VSS Leg > --- UTILITY ---------- Huge Storage Unit Advanced Visual Processing Unit Improved Sensor Array Advanced Signal Interpreter Advanced Targeting Computer Kinecellerator Improved Weapon Cycler Phase Shifter > --- WEAPON ----------- Hypervelocity Mass Driver Hypervelocity Mass Driver > --- INVENTORY -------- Light Angular Momentum Engine Light Fission Core Light Neutrino Core Antimatter Reactor Antimatter Reactor Carbon-fiber Leg Carbon-fiber Leg Carbon-fiber Leg Armored Huge Wheel High-capacity Storage Unit Improved Matter Compressor Improved Signal Interpreter Advanced Signal Interpreter Improved Phase Shifter Hardened Heavy Armor Plating Improved Force Field Hacking Suite Gauss Rifle Hypervelocity Mass Driver Remote Datajack Lance Lance [Rating: 112] Favorites ----------- Power Ion Engine Engine Ion Engine Power Core Light Fission Core Reactor Light Antimatter Reactor Propulsion Armored Wheel Treads Light Treads Leg Flexi-carbon Leg Wheel Armored Wheel Utility Huge Storage Unit Device Improved Sensor Array Storage Huge Storage Unit Processor Advanced Targeting Computer Hackware Hacking Suite Protection Light Armor Plating Weapon Rocket Launcher Energy Gun EM Pulse Gun Energy Cannon Subdweller Beam Cannon Ballistic Gun Light Assault Rifle Ballistic Cannon Heavy Assault Cannon Launcher Rocket Launcher Impact Weapon Mace Piercing Weapon Lance Build | -11 -10 -10 -10 -8 -7 -6 -5 -4 -4 ------- Run | Yrd Mat Min Sub Mat Fac Fac Fac Fac Upp Slots Evolved 12 | . . . . 4 2 2 2 2 . Power 1 | . . . . . . . 1 . . Propulsion 5 | . . . . . 2 . 1 2 . Utility 6 | . . . . 4 . 2 . . . Weapon . | . . . . . . . . . . Parts Attached 121 | 7 9 . 15 24 13 14 9 26 4 Power 19 | 1 1 . 4 2 1 2 3 4 1 Engine 10 | 1 1 . 4 2 1 . . 1 . Core 4 | . . . . . . 2 1 . 1 Reactor 5 | . . . . . . . 2 3 . Propulsion 35 | 2 4 . 1 6 6 6 2 8 . Treads 4 | 2 . . . 2 . . . . . Leg 16 | . . . . . 1 6 2 7 . Wheel 15 | . 4 . 1 4 5 . . 1 . Hover . | . . . . . . . . . . Flight . | . . . . . . . . . . Utility 40 | 2 3 . 3 10 4 4 4 8 2 Device 17 | 1 . . . 6 . 2 3 4 1 Storage 5 | 1 2 . . . . 1 . 1 . Processor 5 | . . . . 2 . 1 . 2 . Hackware 2 | . . . . . 1 . . . 1 Protection 11 | . 1 . 3 2 3 . 1 1 . Artifact . | . . . . . . . . . . Weapon 27 | 2 1 . 7 6 2 2 . 6 1 Energy Gun 4 | . . . 1 1 1 1 . . . Energy Cannon 1 | . . . . 1 . . . . . Ballistic Gun 8 | 2 . . 2 2 . . . 2 . Ballistic Cannon 4 | . . . . . . 1 . 2 1 Launcher 7 | . 1 . 4 1 1 . . . . Special Weapon . | . . . . . . . . . . Impact Weapon 1 | . . . . 1 . . . . . Slashing Weapon . | . . . . . . . . . . Piercing Weapon 2 | . . . . . . . . 2 . Special Melee Weapon . | . . . . . . . . . . Unidentified Prototypes 4 | . . . . . . 1 . 2 1 Corrupted Parts 1 | . . . . . 1 . . . . System Corruption 2 | . . . . . 2 . . . . Parts Lost 73 | . . . 9 13 18 3 . 24 6 Power 9 | . . . 1 . 2 1 . 3 2 Propulsion 24 | . . . 1 4 7 1 . 10 1 Utility 22 | . . . 3 3 4 1 . 9 2 Weapon 18 | . . . 4 6 5 . . 2 1 Highest Loss Streak 20 | . . . 4 10 13 2 . 20 4 To Critical Strikes . | . . . . . . . . . . Average Backups 18 | 3 8 20 22 15 19 14 21 20 11 Power 2 | . 1 2 3 1 . . 2 3 1 Propulsion 3 | 1 1 4 5 2 1 1 6 4 . Utility 7 | . 3 8 8 5 11 5 6 7 6 Weapon 4 | 1 2 6 6 4 4 5 5 4 3 Tool/Special . | . . . . . . . . . . Unused Backups 24 | . . . 4 3 . 4 5 2 6 Power 2 | . . . 1 1 . . . . . Propulsion 8 | . . . 1 2 . 2 3 . . Utility 10 | . . . 2 . . 1 2 . 5 Weapon 2 | . . . . . . . . 2 . Tool/Special 2 | . . . . . . 1 . . 1 Average Slot Usage (%) 87 | . 100 100 99 85 61 62 81 93 52 Engine 8 | . 14 14 13 9 2 . . 1 . Core 1 | . . . . . . 4 4 1 4 Reactor 1 | . . . . . . . 5 5 4 Treads 4 | . 19 . . 5 9 . . . . Leg 6 | . . . . . . 18 28 34 . Wheel 13 | . 8 28 27 10 10 . . . 4 Device 7 | . 7 . . 17 1 14 19 19 12 Storage 10 | . 14 14 14 9 6 10 6 4 4 Processor 4 | . . . . 6 6 8 10 12 10 Protection 7 | . 6 14 13 11 1 . 1 2 . Energy Gun 3 | . . . 6 6 2 . . . . Ballistic Gun 5 | . 27 28 2 3 . . . 1 . Ballistic Cannon 1 | . . . . . . 3 5 6 4 Launcher 7 | . . . 19 4 3 . . . . Peak Build Rating 112 | 7 11 11 19 33 37 78 99 112 69 Average Rating 34 | 5 7 11 14 26 22 61 91 97 63 On Entrance 33 | . 7 11 11 17 30 30 78 98 49 Naked Turns . | . . . . . . . . . . Heaviest Build 148 | 13 90 90 100 106 106 111 134 148 138 Greatest Support 146 | 40 40 24 24 40 50 117 137 146 28 Greatest Overweight (x) 30 | . 4 3 4 5 30 1 . 3 4 Average Overweight (x) 2 | . 1 3 3 2 6 . . . 3 Largest Inventory Capacity 25 | 8 25 25 25 25 25 25 25 25 25 Average Capacity 23 | 7 13 25 25 25 25 25 25 25 24 Most Carried 25 | 6 20 20 25 25 25 25 25 25 13 Average Carried 19 | 4 8 20 24 18 23 17 24 22 11 Final Capacity 25 | 8 25 25 25 25 25 25 25 25 5 Final Carried 25 | 5 20 20 25 21 18 25 25 24 5 Class Distribution -------------------- 67% | Mutant 21% | Scavenger-Mutant 9% | Scavenger-Skirmisher Dominant Class ---------------- Mutant | -10/Materials Mutant | -10/Mines Mutant | -10/Subcaves Scavenger-Mutant | -8/Materials Mutant | -7/Factory Scavenger-Skirmisher | -6/Factory Scavenger-Mutant | -5/Factory Scavenger-Skirmisher | -4/Factory Mutant | -4/Upper Caves Resources | -11 -10 -10 -10 -8 -7 -6 -5 -4 -4 ----------- Run | Yrd Mat Min Sub Mat Fac Fac Fac Fac Upp Matter Collected 4419 | 280 340 . 1053 712 145 467 432 614 376 Remotely . | . . . . . . . . . . Salvage Created 3720 | 73 411 . 638 417 301 369 635 750 126 Parts 196 | 5 27 . 48 25 28 7 19 33 4 Haulers Intercepted 3 | . 2 . . . . . . 1 . Recyclers Shooed 4 | 1 . . . . . 1 . 2 . Parts Field Recycled . | . . . . . . . . . . Retrieved Matter . | . . . . . . . . . . Parts Self-Destructed 13 | . . . 11 . . . . . 2 Prevented . | . . . . . . . . . . Kills | -11 -10 -10 -10 -8 -7 -6 -5 -4 -4 ------- Run | Yrd Mat Min Sub Mat Fac Fac Fac Fac Upp Combat Hostiles Destroyed 73 | . 10 . 25 10 9 6 5 7 1 Guns 18 | . 8 . 2 6 1 . . 1 . Cannons 15 | . . . . . . 4 5 5 1 AOE 39 | . 2 . 22 4 8 2 . 1 . Classes Destroyed 17 | 2 4 . 3 3 2 . 1 1 1 Worker 5 | . . . . 1 2 . 1 1 . Builder 7 | . . . . 1 4 . 1 1 . Tunneler 1 | 1 . . . . . . . . . Hauler 3 | . 2 . . . . . . 1 . Recycler 8 | 1 . . . 1 . 1 3 2 . Operator 1 | . . . . . . . . 1 . Watcher 3 | . 1 . . . . . . 2 . Swarmer 5 | . 3 . 2 . . . . . . Grunt 25 | . 7 . 1 6 5 3 3 . . Duelist 1 | . . . . . 1 . . . . Sentry 7 | . . . 1 3 1 . . 1 1 Specialist 1 | . . . . . . . 1 . . Hunter 9 | . . . . 1 1 3 . 4 . Programmer 4 | . . . . . 1 . 1 2 . Artisan 2 | . . . 2 . . . . . . Subdweller 21 | . . . 21 . . . . . . Decomposer 1 | . . . . . . . . . 1 Samaritan 1 | . . . . . . . . . 1 Best Kill Streak 9 | 2 4 . 5 5 9 4 3 4 1 Combat Bots Only 5 | . 3 . 5 3 5 3 2 2 1 Max Kills in Single Turn 3 | 1 2 . 2 3 2 2 1 1 1 Gunslinging . | . . . . . . . . . . Exploded 2 | . 2 . 2 1 1 2 . 1 . Melee . | . . . . . . . . . . Uniques/NPCs Destroyed . | . . . . . . . . . . Combat | -11 -10 -10 -10 -8 -7 -6 -5 -4 -4 -------- Run | Yrd Mat Min Sub Mat Fac Fac Fac Fac Upp Hostile Shots Fired 921 | . 36 . 79 103 281 55 32 219 116 Missed 282 | . 9 . 25 21 73 18 16 85 35 Hits 639 | . 27 . 54 82 208 37 16 134 81 Projectile 639 | . 27 . 54 82 208 37 16 134 81 AOE 5 | . . . . . . 1 . 4 . Critical Strikes 26 | . . . 1 9 3 2 . 7 4 Part Disruptions 1 | . . . . . 1 . . . . Damage Taken 11080 | . 302 . 1277 1311 2184 760 303 3513 1430 Core 2123 | . 48 . 184 214 424 52 20 498 683 Absorbed by Shields 253 | . . . . . . . . . 253 Ignored by Resistances 42 | . . . . . 24 . . . 18 Regen/Repaired (Parts) 8 | . . . . 8 . . . . . Core Remaining (%) 66 | 100 . . 7 61 39 93 98 . . Volleys Fired 350 | 5 49 . 88 54 32 21 32 56 13 Largest 2 | 2 2 . 2 2 1 1 1 2 1 Hottest 112 | 40 40 . 73 110 63 56 50 112 56 Shots Fired 463 | 10 96 . 109 65 32 21 32 85 13 Gun 225 | 10 94 . 38 49 9 1 . 24 . Cannon 134 | . . . . 8 . 20 32 61 13 Launcher 104 | . 2 . 71 8 23 . . . . Special . | . . . . . . . . . . Kinetic 317 | 10 94 . 34 29 . 20 32 85 13 Thermal 36 | . . . . 26 9 1 . . . Explosive 86 | . 2 . 54 7 23 . . . . Electromagnetic 24 | . . . 21 3 . . . . . Robot Hit Streak 19 | 5 9 . 16 19 13 9 4 9 3 Robot Miss Streak 8 | 1 8 . 3 5 3 3 2 3 3 Penetration Max 1 | . . . . . . . 1 1 . Secondary Targets . | . . . . . . . . . . Shots Hit Robots 294 | 7 59 . 57 49 23 12 21 56 10 Core Hits 192 | 5 27 . 38 33 37 9 10 28 5 Critical Kills 4 | . . . . . . . . 3 1 Critical Parts Destroyed 3 | . 1 . . . . . . 2 . Critical Strikes 15 | . 1 . . 1 . 3 4 5 1 Burn 1 | . . . . 1 . . . . . Destroy 7 | . 1 . . . . . . 5 1 Blast 7 | . . . . . . 3 4 . . Melee Attacks 15 | . . . . 1 . . . 11 3 Impact 1 | . . . . 1 . . . . . Slashing . | . . . . . . . . . . Piercing 14 | . . . . . . . . 11 3 Sneak Attacks 3 | . . . . . . . . . 3 Combat Hostiles . | . . . . . . . . . . Follow-up Attacks . | . . . . . . . . . . Damage Inflicted 12039 | 58 550 . 3074 1309 1666 1044 1455 2563 320 Guns 2148 | 58 470 . 354 728 195 . . 343 . Cannons 3469 | . . . . 173 . 564 1455 1180 97 Explosions 5982 | . 80 . 2720 408 1471 480 . 823 . Melee 347 | . . . . . . . . 124 223 Ramming 93 | . . . . . . . . 93 . Kinetic 5671 | 58 470 . 864 640 . 564 1455 1523 97 Thermal 1717 | . . . . 429 603 480 . 205 . Explosive 4011 | . 80 . 2025 225 1063 . . 618 . Electromagnetic 200 | . . . 185 15 . . . . . Impact . | . . . . . . . . . . Slashing . | . . . . . . . . . . Piercing 347 | . . . . . . . . 124 223 Highest Corruption 8 | . 2 2 2 . 8 . 3 8 8 Average Corruption 2 | . 1 2 2 . 5 . 1 5 8 Corruption Purged . | . . . . . . . . . . Corruption Blocked . | . . . . . . . . . . Effects 77 | . 3 4 41 . 8 . 4 . 17 Message Errors 26 | . 1 3 17 . 1 . 1 . 3 Matter Fused 20 | . 1 . 9 . 2 . 2 . 6 Heat Flow Errors 8 | . . 1 2 . 4 . 1 . . Energy Discharges 10 | . . . 6 . . . . . 4 Parts Fused 2 | . . . 1 . . . . . 1 Data Loss (minor) 7 | . 1 . 3 . 1 . . . 2 Data Loss (major) 1 | . . . . . . . . . 1 Misfires 3 | . . . 3 . . . . . . Overload Shots . | . . . . . . . . . . Overflow Damage 370 | . . . 3 19 12 83 53 131 69 Projectiles 170 | . . . . . . 10 53 107 . Explosions 131 | . . . 3 19 12 73 . 24 . Melee 69 | . . . . . . . . . 69 Knockbacks 25 | . . . . . . 3 11 11 . Impact 1 | . . . . . . . . 1 . Kinetic 24 | . . . . . . 3 11 10 . Secondary . | . . . . . . . . . . Self-Inflicted Damage 368 | . . . 135 82 15 . . 136 . Shots 11 | . . . 5 3 1 . . 2 . Rammed . | . . . . . . . . . . Targets Rammed 4 | . . . . . . . . 4 . Kicked 4 | . . . . . . . . 4 . Crushed . | . . . . . . . . . . Highest Temperature 394 | . 12 132 259 358 394 . 96 363 248 Average Temperature 100 | . 6 72 133 142 209 . 27 79 70 Received Heat Transfer 2403 | . 96 . 445 639 552 156 51 12 452 Effects 12 | . . . . 4 7 . . 1 . Energy Bleed 3 | . . . . . 2 . . 1 . Interference 7 | . . . . 4 3 . . . . Short Circuit 1 | . . . . . 1 . . . . Damage (minor) 1 | . . . . . 1 . . . . Siege Activations . | . . . . . . . . . . Martial Activations . | . . . . . . . . . . Shielding Activations . | . . . . . . . . . . Robots Disrupted . | . . . . . . . . . . Combat Hostiles . | . . . . . . . . . . Robots Corrupted 1 | . . . 1 . . . . . . Combat Hostiles 1 | . . . 1 . . . . . . Parts Fried 3 | . . . 3 . . . . . . Impact Corruptions . | . . . . . . . . . . Robots Melted . | . . . . . . . . . . Combat Hostiles . | . . . . . . . . . . Parts Melted 7 | . . . . 3 1 1 . 2 . Heat Transferred 1824 | . . . . 851 523 300 . 150 . Parts Sabotaged . | . . . . . . . . . . Parts Stolen . | . . . . . . . . . . Parts Stripped . | . . . . . . . . . . Power Chain Reactions . | . . . . . . . . . . Alert | -11 -10 -10 -10 -8 -7 -6 -5 -4 -4 ------- Run | Yrd Mat Min Sub Mat Fac Fac Fac Fac Upp Maximum Alert Level 1 | . . . . . 1 . . 1 . Low Security (%) 94 | 100 100 100 . 100 92 100 100 76 . Level 1 5 | . . . . . 7 . . 23 . Level 2 . | . . . . . . . . . . Level 3 . | . . . . . . . . . . Level 4 . | . . . . . . . . . . Level 5 . | . . . . . . . . . . High Security . | . . . . . . . . . . Max Security . | . . . . . . . . . . Peak Influence 236 | 10 84 . . 74 236 120 89 227 . Initial 39 | . . . . . 14 39 7 18 . Average 52 | . 22 . . 18 78 45 27 142 . Influence Increases 2326 | 10 306 . 80 372 546 239 225 528 20 Destroy 0b10 Robot/C 1040 | . 200 . 80 200 180 120 100 140 20 Destroy 0b10 Robot/NC 140 | 10 15 . . 15 30 5 25 40 . Destroy Leader 232 | . 36 . . 60 30 30 30 46 . Successful Hack 61 | . 20 . . 34 . . . 7 . Disable Machine 465 | . . . . 15 225 45 30 150 . Destroy Structure 313 | . 20 . . 48 81 24 10 130 . Partial Spotted 15 | . . . . . . . 15 . . Lose Combat Pursuer 60 | . 15 . . . . 15 15 15 . Influence Decreases 2326 | 10 306 . 80 339 497 306 201 567 20 Entered New Map 91 | . . . . . 19 43 8 21 . Time Decay 1724 | 10 306 . 80 255 298 243 193 319 20 Lost Part 511 | . . . . 84 180 20 . 227 . Squads Dispatched 26 | . 3 . . 7 6 5 3 2 . Investigation 6 | . 1 . . 2 1 2 . . . Extermination 4 | . . . . . 1 1 1 1 . Reinforcement 10 | . 2 . . 2 1 2 2 1 . Assault 2 | . . . . 2 . . . . . Garrison 4 | . . . . 1 3 . . . . Intercept . | . . . . . . . . . . Searches Triggered . | . . . . . . . . . . Construction Impeded 1 | . . . . . 1 . . . . Haulers Reinforced . | . . . . . . . . . . Active Scanning Responses . | . . . . . . . . . . Cargo Convoy Interrupts . | . . . . . . . . . . Stealth | -11 -10 -10 -10 -8 -7 -6 -5 -4 -4 --------- Run | Yrd Mat Min Sub Mat Fac Fac Fac Fac Upp Distress Signals 10 | . 3 . . 2 . 2 1 2 . Communications Jammed . | . . . . . . . . . . Distress Signals . | . . . . . . . . . . Times Spotted 123 | . 18 . 24 10 13 12 20 22 4 Peak Tracking Total 6 | . 3 . 3 4 5 4 5 6 3 Tactical Retreats 5 | . 1 . . . . 1 1 2 . Traps | -11 -10 -10 -10 -8 -7 -6 -5 -4 -4 ------- Run | Yrd Mat Min Sub Mat Fac Fac Fac Fac Upp Traps Triggered 6 | . 3 . . 1 . 1 1 . . Indirectly . | . . . . . . . . . . Trap Hack Attempts . | . . . . . . . . . . Triggered . | . . . . . . . . . . Disarmed . | . . . . . . . . . . Reprogrammed . | . . . . . . . . . . Reused . | . . . . . . . . . . Traps Extracted . | . . . . . . . . . . Installed . | . . . . . . . . . . Triggered . | . . . . . . . . . . Machines | -11 -10 -10 -10 -8 -7 -6 -5 -4 -4 ---------- Run | Yrd Mat Min Sub Mat Fac Fac Fac Fac Upp Machines Disabled 32 | . . . 1 1 15 3 2 10 . Max in Single Turn 13 | . . . 1 1 13 2 1 4 . Garrison Access 1 | . . . . 1 . . . . . Machines Repaired . | . . . . . . . . . . Machines Dismantled . | . . . . . . . . . . Machines Sabotaged . | . . . . . . . . . . Overloaded Fab Kills . | . . . . . . . . . . Hacking | -11 -10 -10 -10 -8 -7 -6 -5 -4 -4 --------- Run | Yrd Mat Min Sub Mat Fac Fac Fac Fac Upp Machines Accessed 22 | . 6 . 2 6 2 2 2 2 . Terminals 14 | . 5 . . 5 2 1 . 1 . Fabricators 3 | . . . . . . 1 2 . . Repair Stations 1 | . . . . 1 . . . . . Recycling Units 2 | . 1 . . . . . . 1 . Scanalyzers . | . . . . . . . . . . Garrison Access . | . . . . . . . . . . Total Hacks 54 | . 13 . 5 18 5 5 2 6 . Successful 22 | . 4 . 5 9 . 1 1 2 . Failed 32 | . 9 . . 9 5 4 1 4 . Catastrophic 4 | . . . . 1 1 . 1 1 . Database Lockouts . | . . . . . . . . . . Manual 25 | . 9 . . 11 5 . . . . Terminals 41 | . 12 . . 16 5 3 . 5 . Fabricators 4 | . . . . . . 2 2 . . Repair Stations 2 | . . . . 2 . . . . . Recycling Units 2 | . 1 . . . . . . 1 . Scanalyzers . | . . . . . . . . . . Garrison Access . | . . . . . . . . . . Terminal Hacks 16 | . 3 . 5 7 . . . 1 . Record 4 | . . . 4 . . . . . . Prototype ID Bank 1 | . . . . 1 . . . . . Level Access Points 1 | . . . . 1 . . . . . Branch Access Points 3 | . 1 . . 1 . . . 1 . Recall Investigation 1 | . . . . 1 . . . . . Registered Components 1 | . 1 . . . . . . . . Zone Layout 4 | . 1 . . 3 . . . . . Proto ID Catalog 1 | . . . 1 . . . . . . Fabricator Hacks 2 | . . . . . . 1 1 . . Network Status 2 | . . . . . . 1 1 . . Repair Station Hacks . | . . . . . . . . . . Recycling Unit Hacks 2 | . 1 . . . . . . 1 . Report Inventory 2 | . 1 . . . . . . 1 . Scanalyzer . | . . . . . . . . . . Garrison Access Hacks . | . . . . . . . . . . Unauthorized Hacks 2 | . . . . 2 . . . . . Terminals 1 | . . . . 1 . . . . . Botnet 1 | . . . . 1 . . . . . Fabricators . | . . . . . . . . . . Repair Stations 1 | . . . . 1 . . . . . Patch 1 | . . . . 1 . . . . . Recycling Units . | . . . . . . . . . . Scanalyzers . | . . . . . . . . . . Garrison Access . | . . . . . . . . . . Data Cores Recovered 2 | . . . . . 1 . . 1 . Used . | . . . . . . . . . . Hacking Detections 14 | . 5 . . 4 2 2 1 . . Full Trace Events 4 | . 1 . . 1 1 1 . . . Feedback Events . | . . . . . . . . . . Feedback Blocked . | . . . . . . . . . . Robot Schematics Acquired . | . . . . . . . . . . Robots Built . | . . . . . . . . . . Authchips . | . . . . . . . . . . Time . | . . . . . . . . . . Total Robot Build Rating . | . . . . . . . . . . Part Schematics Acquired . | . . . . . . . . . . Parts Built . | . . . . . . . . . . Authchips . | . . . . . . . . . . Time . | . . . . . . . . . . Total Part Build Rating . | . . . . . . . . . . Parts Repaired . | . . . . . . . . . . Time . | . . . . . . . . . . Parts Recycled . | . . . . . . . . . . Recycled Matter . | . . . . . . . . . . Retrieved Matter . | . . . . . . . . . . Retrieved Components . | . . . . . . . . . . Parts Scanalyzed . | . . . . . . . . . . Part Schematics Acquired . | . . . . . . . . . . Parts Damaged . | . . . . . . . . . . Bothacking | -11 -10 -10 -10 -8 -7 -6 -5 -4 -4 ------------ Run | Yrd Mat Min Sub Mat Fac Fac Fac Fac Upp Used RIF Installer . | . . . . . . . . . . Robots Hacked . | . . . . . . . . . . Non-combat . | . . . . . . . . . . Combat . | . . . . . . . . . . Robot Hacks Applied . | . . . . . . . . . . Relay Couplers Released 2 | . . . . 2 . . . . . Machine Destruction 2 | . . . . 2 . . . . . Fabnet Peak Effective % . | . . . . . . . . . . Robots Rewired . | . . . . . . . . . . Allies Hacked . | . . . . . . . . . . Hacks Repelled . | . . . . . . . . . . Allies | -11 -10 -10 -10 -8 -7 -6 -5 -4 -4 -------- Run | Yrd Mat Min Sub Mat Fac Fac Fac Fac Upp Total Allies . | . . . . . . . . . . Largest Group . | . . . . . . . . . . Highest-Rated Group . | . . . . . . . . . . Highest-Rated Ally . | . . . . . . . . . . Total Orders . | . . . . . . . . . . Ally Attacks . | . . . . . . . . . . Total Damage . | . . . . . . . . . . Kills . | . . . . . . . . . . Allies Corrupted . | . . . . . . . . . . Allies Melted . | . . . . . . . . . . Intel | -11 -10 -10 -10 -8 -7 -6 -5 -4 -4 ------- Run | Yrd Mat Min Sub Mat Fac Fac Fac Fac Upp Active Infowar (turns) 3629 | 31 553 . . 695 63 460 546 827 454 Optics 1764 | . . . . 694 63 43 5 505 454 Sensors 1729 | . . . . . . 421 546 762 . Terrain 514 | . . . . 195 . 318 1 . . Traps 926 | . . . . 681 61 184 . . . Seismic 584 | 31 553 . . . . . . . . Robot Analysis Total . | . . . . . . . . . . Derelict Logs Recovered 3 | . . 1 . . . . . . 2 Drone Launches . | . . . . . . . . . . Drone Recoveries . | . . . . . . . . . . Exploration | -11 -10 -10 -10 -8 -7 -6 -5 -4 -4 ------------- Run | Yrd Mat Min Sub Mat Fac Fac Fac Fac Upp Turns Passed 8540 | 126 1107 148 2972 870 851 639 546 827 454 Spaces Moved 4821 | 51 595 83 1936 374 412 297 346 442 285 Core 54 | 11 . . . . 2 . . . 41 Treads 507 | 40 374 . . 84 9 . . . . Legs 1071 | . . . . . 6 297 346 422 . Wheels 3189 | . 221 83 1936 290 395 . . 20 244 Hover . | . . . . . . . . . . Flight . | . . . . . . . . . . Fastest Speed 50 | 50 135 135 135 120 116 108 108 111 50 Average Speed 146 | 136 151 135 141 175 182 179 109 115 142 Slowest Speed 1550 | 160 160 135 150 320 1550 185 110 190 160 Overloaded Moves . | . . . . . . . . . . Propulsion Burnouts . | . . . . . . . . . . Robots Hopped . | . . . . . . . . . . Potential Cave-ins . | . . . . . . . . . . Cave-ins Triggered . | . . . . . . . . . . Exploration Rate (%) 32 | 4 72 20 94 28 18 8 13 15 51 Regions Visited 9 Branch Regions 3 Pre-discovered Areas 2 | . . 1 . . . . . . 1 Known Exits Taken 5 | . 1 . . 1 . 1 1 1 . Unknown Exits Taken 4 | 1 . 1 1 . 1 . . . . Scrap Searched 5 | . . . 3 . . . . . 2 Spaces Dug 16 | . . . . 11 . . 1 4 . Terrain Destroyed 800 | . 22 . 528 54 92 29 5 68 2 Melee 4 | . . . . . . . . 4 . Projectile 27 | . . . . 3 . 9 5 8 2 AOE 769 | . 22 . 528 51 92 20 . 56 . Terrain Rammed . | . . . . . . . . . . Walls Destroyed . | . . . . . . . . . . Machines Disabled . | . . . . . . . . . . Actions | -11 -10 -10 -10 -8 -7 -6 -5 -4 -4 --------- Run | Yrd Mat Min Sub Mat Fac Fac Fac Fac Upp Total 5875 | 100 719 119 2074 524 483 376 484 679 317 Wait 305 | 26 40 37 . 29 7 10 78 77 1 Move 4812 | 50 594 82 1935 373 411 296 345 441 285 Hop . | . . . . . . . . . . Pick Up 144 | 12 20 . 22 21 8 26 8 24 3 Fast Attach 9 | . . . . 3 2 . 3 1 . Attach 103 | 7 3 . 9 22 15 16 1 25 5 Detach 18 | . . . . 4 6 1 2 5 . Swap 48 | . 8 . 8 7 1 1 5 18 . Drop 67 | . 5 . 12 10 1 5 10 17 7 Fire 350 | 5 49 . 88 54 32 21 32 56 13 Melee 15 | . . . . 1 . . . 11 3 Ram . | . . . . . . . . . . Kick 4 | . . . . . . . . 4 . Crush . | . . . . . . . . . . Escape Stasis . | . . . . . . . . . . Rewire . | . . . . . . . . . . Trap . | . . . . . . . . . . Miscellaneous . | . . . . . . . . . . Route ------- -11/Scrapyard -10/Materials (discovered 4 exits: [*Mat x2] / *Min x2) -10/Mines -10/Subcaves (discovered 2 exits: *Mat x2) -8/Materials (discovered 3 exits: *Fac x3) -7/Factory (discovered 2 exits: *Fac / [*Low]) -6/Factory -5/Factory -4/Factory (discovered 4 exits: *Upp x2 / Ext x2) -4/Upper Caves History --------- Turn | Location | Event 2 | -11/Scrapyard | Met Revision 17 21 | -11/Scrapyard | Discovered new exit (range 16) 127 | -11/Scrapyard | Entered Materials 172 | -10/Materials | Identified exit to Mines 318 | -10/Materials | Build established: Mutant 464 | -10/Materials | Discovered new exit (range 8) 872 | -10/Materials | Discovered new exit (range 15) 1234 | -10/Materials | Entered Mines 1327 | -10/Mines | Discovered new exit (range 5) 1382 | -10/Mines | Entered Subcaves 1383 | -10/Subcaves | Approached by a straggling Scientist 1469 | -10/Subcaves | Shifting Twisted Machinery released Sub. Shrapnel Launcher 1509 | -10/Subcaves | A swath of the cavern ceiling suddenly collapsed 1737 | -10/Subcaves | Ambushed by Subdweller buried in earth 1897 | -10/Subcaves | A swath of the cavern ceiling suddenly collapsed 2405 | -10/Subcaves | Core integrity fell below 50% 2615 | -10/Subcaves | Disturbed a concealed Subdweller 3157 | -10/Subcaves | Discovered new exit (range 11) 3174 | -10/Subcaves | Ambushed by angry Subdweller bent on revenge 3341 | -10/Subcaves | Visited Clippyterm 3345 | -10/Subcaves | Learned Research machine intel 3383 | -10/Subcaves | Discovered new exit (range 15) 3617 | -10/Subcaves | Shifting Twisted Machinery released Scrap Shield 3619 | -10/Subcaves | Shifting Twisted Machinery released Battle Cannon 3849 | -10/Subcaves | Ambushed by Subdweller buried in earth 3888 | -10/Subcaves | Visited 4L-MR0's lab 3906 | -10/Subcaves | Found Arachnoskeleton 4008 | -10/Subcaves | Shifting Twisted Machinery released Riot Gun 4008 | -10/Subcaves | Shifting Twisted Machinery released Sub. Optics 4026 | -10/Subcaves | Ambushed by Subdweller buried in earth 4027 | -10/Subcaves | Core integrity fell below 20% 4237 | -10/Subcaves | Lost 4 parts (1p1u2w) 4354 | -10/Subcaves | Entered Materials 4354 | -8/Materials | Evolved 4 slots: Utility x4 4455 | -8/Materials | Garrison activated, responded to threat 4546 | -8/Materials | Lost 10 parts (3n2u5w) 4647 | -8/Materials | Identified exit to Factory 4816 | -8/Materials | Build established: Scavenger-Mutant 5143 | -8/Materials | Met 7R-MNS 5224 | -8/Materials | Entered Factory 5224 | -7/Factory | Evolved 2 slots: Propulsion x2 5225 | -7/Factory | Caught up to 7R-MNS 5450 | -7/Factory | Discovered new exit (range 11) 5587 | -7/Factory | Build established: Mutant 5798 | -7/Factory | Garrison activated, responded to threat 5802 | -7/Factory | Lost 5 parts (3n2w) 5881 | -7/Factory | Discovered new exit (range 15) 6066 | -7/Factory | Attached Arachnoskeleton, gained temporary slots: Propulsion x3 6072 | -7/Factory | Core integrity fell below 50% 6075 | -7/Factory | Entered another Factory area 6075 | -6/Factory | Evolved 2 slots: Utility x2 6076 | -6/Factory | Caught up to 7R-MNS 6103 | -6/Factory | Lost 13 parts (2p4n4u3w) 6626 | -6/Factory | Build established: Scavenger-Skirmisher 6649 | -6/Factory | Discovered new exit (range 13) 6713 | -6/Factory | Identified exit to Factory 6714 | -6/Factory | Entered another Factory area 6714 | -5/Factory | Evolved 2 slots: Power x1, Propulsion x1 6715 | -5/Factory | Caught up to 7R-MNS 7068 | -5/Factory | Build established: Scavenger-Mutant 7187 | -5/Factory | Discovered new exit (range 8) 7254 | -5/Factory | Identified exit to Factory 7260 | -5/Factory | Entered another Factory area 7260 | -4/Factory | Evolved 2 slots: Propulsion x2 7261 | -4/Factory | Caught up to 7R-MNS 7386 | -4/Factory | Attacked by 7R-MNS 7468 | -4/Factory | Identified exit to Upper Caves 7468 | -4/Factory | Identified exit to Extension 7573 | -4/Factory | Lost 3 parts (2u1w) 8087 | -4/Factory | Entered Upper Caves 8106 | -4/Upper Caves | Lost 20 parts (3p10n6u1w) 8297 | -4/Upper Caves | Build established: Mutant 8306 | -4/Upper Caves | Attracted the attention of an 0b10 checkpoint 8397 | -4/Upper Caves | Learned location of Armory (-3) 8431 | -4/Upper Caves | Spotted B-86 Titan 8453 | -4/Upper Caves | Core integrity fell below 50% 8519 | -4/Upper Caves | Core integrity fell below 20% 8539 | -4/Upper Caves | Learned 4 Research zone layouts 8541 | -4/Upper Caves | Destroyed by B-86 Titan with Hardcell Cannon Last Messages --------------- 08515_ Slug penetrates Wall. 08515_ Penetrated by Slug. 08515_ Slug penetrates Wall. 08516_ Wall collapses. 08516_ Dropped Adv. Terrain Scan Processor. 08516_ Dropped Adv. Signal Interpreter. 08517_ Dropped Imp. Signal Interpreter. 08518_ Slug penetrates Wall. 08518_ Penetrated by Slug. 08518_ Slug penetrates Abandoned Machinery. 08518_ Dropped Imp. Thermal Defense Suite. 08519_ Penetrated by Slug. 08520_ Dropped Huge Storage Unit. 08521_ Slug penetrates Wall. 08521_ Penetrated by Slug. 08522_ Slug penetrates Wall. 08522_ Penetrated by Slug. 08525_ Slug penetrates Wall. 08539_ Acquired derelict log, extracted data. Data stored: Research zone layouts (x4). Map ----- +----------------------------------------------------+ | ?????????????????????????????????????????????????? | | ?????????????????????????????????????????????????? | | ?????????????????????????????????????????????????? | | ?????????????????????????????????????????????????? | | ?????????????????????????????????????????????????? | | ?????????????????????????????????????????????????? | | ?????????????????????????????????????????????????? | | ?????????????????????????????????????????????????? | | ?????????????????????????????????????????????????? | | ?????????????????????????????????????? ???????? | | ????????????????????????????????????? ????????? | | ??????????????????????????######??### ???????### | | ?????????????????????????## #??# ???????? | | ?????????????????????????# #??# ????????? | | ?????????????????????????# ??# #?????????# | | ?????????????????????????# ???# #?????????# | | ?????????????????????????# #??## #?????????# | | ??????????????????????????# #?## #?????????# | | ??????????????????????????# ### #?????????# | | ?????????????????????????## +?????????+ | | ????????????????????????## #?????????# | | ???????????????????????## #?????????# | | ???????????????????????# #?????????# | | ???????????????????????#% #?????????# | | ???????????????????????# ### ########### | | ???????????????????????# @#?# | | ???????????????????????# #?## | | ??????????????????????# #??## #### | | ?????????????????????# #???# ##??# | | ?????????????????????# #???# ###### | | ???????????????????## ##??## #?# | | ?????????????????### ###### #### | | ?????????????????# ### ### | | ?????????????????# ## ## | | ?????????????????# # ###### | | ?????????????????# ## #????? | | ?????????????##### ## # #???? | | ???????????### ## ?# ## ## ###???? | | ???????????# #;; ;#### ## #### ######?????? | | ???????????# # #??# ###????##### | | ??????????## % #### ##???# | | ??????????# ;;;####### ##??# | | ??????????# ;#??????## ##?# | | ??????????## #??????###### #?# | | ???????????# #?????# #??## ### #?# | | ???????????# % "#???## #????# ##??####?# | | ???????????## "#??## #?????# #????????# | | ????????????#"" % ""### #?????# #????????# | | ????????????##" "" ##?#### #???????# | | ????????????# ### # #???????# # | +----------------------------------------------------+ Best States ------------- Heat Dissipation 47 Energy Generation 37 Energy Capacity 395 Matter Stores 450 Matter Capacity 450 Sight Range 21 Robot Scan Range 15 Terrain Scan Range 16 Terrain Scan Density 10 Additional Mass Support 9 Armor Coverage 600 Resistance: TH 25 Resistance: EM 15 Weapon Cycling 20 Phase Shifting 10 Evasion (%) 63 Targeting Accuracy 8 Recoil Reduction 2 Kinecelleration 30 Offensive Hacking 10 Item Schematics ----------------- None Robot Schematics ------------------ None Fabricated ------------ Nothing Repaired ---------- Nothing Alien Tech Used ----------------- None Achievements -------------- None Challenges ------------ None Game ------ Seed DeepSpacefoldDeflector Manual? 0 Play Time 01:14:00 Cumulative 178.0 hours Start 2025.08.21 @ 14:43:08 End 2025.08.21 @ 16:32:05 Sessions 3 Manual Loads 0 Difficulty Rogue Special Mode None Game No. 282 Rogue 282 Adventurer 0 Explorer 0 Win Type - Total 3 Types 2/0/1/0/0/0/0/0/0/0 Lore% 78 Gallery% 74 Achievement% 54 Wizard Run 0 Options --------- Layout 1 ASCII 0 Keyboard 0 Movement Mouse Keybinds 0 Fullscreen 1 Font 24/Smallcaps Map View 50x40 Zoom Use 0% Tactical HUD 1 Map Filters NONE Filters NONE Steam 1 RUN: e844fb76-a0b5-40a7-9896-3da4f0b9f8a8